{"text_format":"1","workbook":"xlsx","n_sheets":1,"sheets":["Itinerário"],"not_rendered":{"charts":0,"images":0,"macros":0,"external_links":1,"defined_names":45,"comments":0,"pivot_tables":0},"unopened":[],"bounds":{"document_bytes":16777216,"sheet_cells":100000,"rows_first":2000,"rows_last":500,"rows_between":2000,"halvings":0,"cell_chars":16384,"cell_head_chars":4096},"cells_cut":0,"cells_raw":0,"read":"whole","date_system":"1900"}

{"sheet":"Itinerário","index":0,"n_rows":323,"n_cols":9,"rows_kept":323,"cut":false,"hidden":false,"merged":[[134,1,149,1],[134,3,135,3],[136,3,139,3],[140,3,144,3],[145,3,149,3],[34,1,47,1],[34,3,35,3],[36,3,38,3],[39,3,42,3],[43,3,47,3],[15,3,20,3],[3,1,20,1],[21,1,33,1],[24,3,26,3],[27,3,30,3],[31,3,33,3],[21,3,23,3],[0,1,0,8],[1,1,1,8],[3,3,5,3],[6,3,10,3],[11,3,14,3],[48,1,82,1],[48,3,54,3],[55,3,65,3],[66,3,75,3],[76,3,82,3],[209,1,228,1],[209,3,212,3],[213,3,217,3],[218,3,222,3],[223,3,228,3],[150,1,173,1],[150,3,157,3],[158,3,163,3],[171,3,173,3],[164,3,170,3],[91,3,98,3],[99,3,106,3],[107,3,114,3],[115,1,133,1],[115,3,118,3],[119,3,123,3],[124,3,128,3],[129,3,133,3],[83,1,114,1],[83,3,90,3],[229,1,265,1],[229,3,236,3],[237,3,246,3],[247,3,256,3],[257,3,265,3],[266,1,305,1],[266,3,275,3],[276,3,285,3],[286,3,295,3],[296,3,305,3],[306,1,322,1],[306,3,309,3],[310,3,313,3],[314,3,318,3],[319,3,322,3],[174,1,191,1],[174,3,176,3],[177,3,181,3],[182,3,186,3],[187,3,191,3],[192,1,208,1],[192,3,195,3],[196,3,199,3],[200,3,203,3],[204,3,208,3]]}
[null,"Associação Catarinense"]
[null,"Itinerário 1º Quadrimestre de 2017"]
[null,"Depart.",null,"Mês",null,"Data","Atividade a Desempenhar","Igreja","Distrito"]
[1,"APOLO STREICHER ABRÁSCIO",{"$f":"IF(B4=0,C3,B4)","v":"APOLO STREICHER ABRÁSCIO"},"JANEIRO",{"$f":"IF(D4=0,E3,D4)","v":"JANEIRO"},14,"Pregação","Palhoça","Palhoça"]
[2,null,{"$f":"IF(B5=0,C4,B5)","v":"APOLO STREICHER ABRÁSCIO"},null,{"$f":"IF(D5=0,E4,D5)","v":"JANEIRO"},21,"Pregação e Treinamento anciãos p/ colheita","Revoredo","Revoredo"]
[3,null,"APOLO STREICHER ABRÁSCIO",null,"JANEIRO",28,"Pregação e Treinamento anciãos p/ colheita","Barreiros","Barreiros"]
[11,null,{"$f":"IF(B7=0,#REF!,B7)","v":{"$error":"#REF!"}},"FEVEREIRO",{"$f":"IF(D7=0,#REF!,D7)","v":"FEVEREIRO"},4,"Pregação e Treinamento anciãos p/ colheita","Florianopolis","Florianopolis"]
[12,null,{"$error":"#REF!"},null,"FEVEREIRO",11,"Pregação e Treinamento anciãos p/ colheita","Garopaba","Garopaba"]
[13,null,{"$error":"#REF!"},null,"FEVEREIRO",18,"Pregação e Treinamento anciãos p/ colheita","Joaçaba","Joaçaba"]
[14,null,{"$error":"#REF!"},null,"FEVEREIRO",19,"Treinamento anciãos p/ colheita","Campinas","Campinas"]
[15,null,{"$error":"#REF!"},null,"FEVEREIRO",25,"Acamp Verão","Lages","Lages"]
[21,null,{"$f":"IF(B12=0,#REF!,B12)","v":{"$error":"#REF!"}},"MARÇO",{"$f":"IF(D12=0,#REF!,D12)","v":"MARÇO"},4,"Pregação ","Gethal Lages","Lages"]
[22,null,{"$error":"#REF!"},null,"MARÇO",11,"Pregação e Treinamento anciãos p/ colheita","Jd. Atlantico","Jardim Atlântico"]
[23,null,{"$error":"#REF!"},null,"MARÇO",19," Treinamento Anciãos Colheita","Nova Brasília","Nova Brasília"]
[24,null,{"$error":"#REF!"},null,"MARÇO",25,"Pregação e Treinamento Anciãos Colheita","Araranguá","Araranguá"]
[31,null,{"$f":"IF(B16=0,#REF!,B16)","v":{"$error":"#REF!"}},"ABRIL",{"$f":"IF(D16=0,#REF!,D16)","v":"ABRIL"},1,"Pregação e Treinamento Anciãos Colheita","Brusque","Brusque"]
[32,null,{"$error":"#REF!"},null,"ABRIL",2,"Treinamento Anciãos Colheita","Sombrio","Sombrio"]
[33,null,{"$error":"#REF!"},null,"ABRIL",8,"Pregação e Treinamento Anciãos Colheita","Próspera","Próspera"]
[34,null,{"$error":"#REF!"},null,"ABRIL",22,"Pregação e Treinamento Anciãos Colheita","S. Martinho","São Martinho"]
[35,null,{"$error":"#REF!"},null,"ABRIL",23,"Treinamento Anciãos Colheita","Imbituba","Imbituba"]
[36,null,{"$error":"#REF!"},null,"ABRIL",29,"Pregação e Treinamento Anciãos Colheita","Estreito","Estreito"]
[41,"PAULO ROBERTO BARBOSA LOPES",{"$f":"IF(B22=0,#REF!,B22)","v":"PAULO ROBERTO BARBOSA LOPES"},"JANEIRO",{"$f":"IF(D22=0,#REF!,D22)","v":"JANEIRO"},14,"Pregação","Ingleses","Ingleses"]
[42,null,"PAULO ROBERTO BARBOSA LOPES",null,"JANEIRO",21,"Pregação","Criciuma","Criciuma"]
[43,null,"PAULO ROBERTO BARBOSA LOPES",null,"JANEIRO",28,"Pregação","Serraria","Barreiros"]
[51,null,{"$f":"IF(B25=0,#REF!,B25)","v":{"$error":"#REF!"}},"FEVEREIRO",{"$f":"IF(D25=0,#REF!,D25)","v":"FEVEREIRO"},4,"pregação","Estreito","Estreito"]
[52,null,{"$error":"#REF!"},null,"FEVEREIRO",11,"Pregação","Jardim Atlântico","Jardim Atlântico"]
[53,null,{"$error":"#REF!"},null,"FEVEREIRO",18,"Pregação no 1º e 2º horário","Bairro São Paulo e Jardim Esperança","Navegantes"]
[61,null,{"$f":"IF(B28=0,#REF!,B28)","v":{"$error":"#REF!"}},"MARÇO",{"$f":"IF(D28=0,#REF!,D28)","v":"MARÇO"},4,"Pregação no 1º e 2º horário","Guarujá","Lages"]
[62,null,{"$error":"#REF!"},null,"MARÇO",4,"Pregação no 1º e 2º horário","Várzea","Santa Helena"]
[63,null,{"$error":"#REF!"},null,"MARÇO",11,"Pregação no 1º e 2º horário","Ribanceira e Canelinha","Tijucas"]
[64,null,{"$error":"#REF!"},null,"MARÇO",25,"Pregação no 1º e 2º horário","Campos Verdes e Cabeçuda","Laguna"]
[71,null,{"$f":"IF(B32=0,#REF!,B32)","v":{"$error":"#REF!"}},"ABRIL",{"$f":"IF(D32=0,#REF!,D32)","v":"ABRIL"},8,"Pregação","Araranguá","Araranguá"]
[72,null,{"$f":"IF(B33=0,C32,B33)","v":{"$error":"#REF!"}},null,{"$f":"IF(D33=0,E32,D33)","v":"ABRIL"},15,"Pregação","São Martinho","São Martinho"]
[73,null,{"$error":"#REF!"},null,"ABRIL",29,"Pregação","Rio Tavares","Rio Tavares"]
[81,"LUCIANO RODRIGO BARBOSA SANCHES",{"$f":"IF(B35=0,#REF!,B35)","v":"LUCIANO RODRIGO BARBOSA SANCHES"},"JANEIRO",{"$f":"IF(D35=0,#REF!,D35)","v":"JANEIRO"}]
[82,null,"LUCIANO RODRIGO BARBOSA SANCHES",null,"JANEIRO",28,"Pregação","Areias do Meio","Biguaçu"]
[91,null,{"$f":"IF(B37=0,#REF!,B37)","v":{"$error":"#REF!"}},"FEVEREIRO",{"$f":"IF(D37=0,#REF!,D37)","v":"FEVEREIRO"}]
[92,null,{"$error":"#REF!"},null,"FEVEREIRO",4,"Pregação","Barra do Aririu","Palhoça"]
[93,null,{"$error":"#REF!"},null,"FEVEREIRO",11,"Pregação","Bom Viver","Barreiros"]
[101,null,{"$f":"IF(B40=0,#REF!,B40)","v":{"$error":"#REF!"}},"MARÇO",{"$f":"IF(D40=0,#REF!,D40)","v":"MARÇO"}]
[102,null,{"$error":"#REF!"},null,"MARÇO",4,"Pregação","Popular ","Santa Helena"]
[103,null,{"$error":"#REF!"},null,"MARÇO",11,"Save One","Catre","AC"]
[104,null,{"$error":"#REF!"},null,"MARÇO",18,"Encontro de Anciãos","AC","AC"]
[111,null,{"$f":"IF(B44=0,#REF!,B44)","v":{"$error":"#REF!"}},"ABRIL",{"$f":"IF(D44=0,#REF!,D44)","v":"ABRIL"}]
[112,null,{"$error":"#REF!"},null,"ABRIL",1,"Pregação","Barreiros","Barreiros"]
[113,null,{"$error":"#REF!"},null,"ABRIL",8,"Semana Santa Escritório","A Definir","AC"]
[114,null,{"$error":"#REF!"},null,"ABRIL",15,"Semana Santa Escritório","A Definir","AC"]
[115,null,{"$error":"#REF!"},null,"ABRIL",29,"Pregação","São Vicente","São Vicente"]
[121,"DÉBORA MOROZ MARTINS ABRÁSCIO",{"$f":"IF(B49=0,#REF!,B49)","v":"DÉBORA MOROZ MARTINS ABRÁSCIO"},"JANEIRO",{"$f":"IF(D49=0,#REF!,D49)","v":"JANEIRO"},14,"Pregação","Capoeiras","Estreito"]
[122,null,"DÉBORA MOROZ MARTINS ABRÁSCIO",null,"JANEIRO",17,"Treinamento Coordenadoras Distritais Região Norte",null,"Região Norte"]
[123,null,"DÉBORA MOROZ MARTINS ABRÁSCIO",null,"JANEIRO",19,"Treinamento Coordenadoras Distritais Região Capital","AC","Região Continente"]
[124,null,"DÉBORA MOROZ MARTINS ABRÁSCIO",null,"JANEIRO",21,"MEL","Distrital","Tijucas"]
[125,null,"DÉBORA MOROZ MARTINS ABRÁSCIO",null,"JANEIRO",24,"Treinamento Coordenadoras Distritais Região Sul","AC","Região Continente"]
[126,null,"DÉBORA MOROZ MARTINS ABRÁSCIO",null,"JANEIRO",28,"Pregação","Barreiros II","Jardim Atlântico"]
[127,null,"DÉBORA MOROZ MARTINS ABRÁSCIO",null,"JANEIRO","29-31 ","Concílio Pastoral",null,"AC"]
[131,null,{"$f":"IF(B56=0,#REF!,B56)","v":{"$error":"#REF!"}},"FEVEREIRO",{"$f":"IF(D56=0,#REF!,D56)","v":"FEVEREIRO"},4,"Pregação","Ratones","Universitário"]
[132,null,{"$f":"IF(B57=0,C56,B57)","v":{"$error":"#REF!"}},null,{"$f":"IF(D57=0,E56,D57)","v":"FEVEREIRO"},4,"Treinamento Integrado Ilha",null,"Região Ilha"]
[133,null,{"$error":"#REF!"},null,"FEVEREIRO","5 D","Treinamento IntegradoTubarão e Criciuma",null,"Região Tubarão e Criciúma"]
[134,null,{"$error":"#REF!"},null,"FEVEREIRO",7,"PGEsP  Capital",null,"Região Continente"]
[135,null,{"$error":"#REF!"},null,"FEVEREIRO",11,"Treinamento Integrado Continente","Tapera","Rio Tavares"]
[136,null,{"$error":"#REF!"},null,"FEVEREIRO","12 D","Treinamento integrado Itajaí e Brusque",null,"Região Itajaí e Brusque"]
[137,null,{"$error":"#REF!"},null,"FEVEREIRO","12 D","Pregação","Azambuja","Brusque"]
[138,null,{"$error":"#REF!"},null,"FEVEREIRO",18,"10 horas de Jejum e oração","Florianópolis","Florianópolis"]
[139,null,{"$error":"#REF!"},null,"FEVEREIRO",19,"Pregação",null,"Imbituba"]
[null,null,{"$error":"#REF!"},null,null,21,"PGEsP  Norte",null,"Região Norte"]
[140,null,{"$f":"IF(B66=0,C64,B66)","v":{"$error":"#REF!"}},null,{"$f":"IF(D66=0,E64,D66)","v":"FEVEREIRO"},"24 - 28","Acampamento de verão"]
[141,null,{"$error":"#REF!"},"MARÇO","MARÇO",4,"Treinamento Integrado Lages","Urupema","Santa Helena"]
[142,null,{"$error":"#REF!"},null,"MARÇO","5 D","Treinamento Integrado Joaçaba",null,"Joaçaba"]
[143,null,{"$error":"#REF!"},null,"MARÇO",7,"PAMP AC com Esposas",null,"AC"]
[144,null,{"$error":"#REF!"},null,"MARÇO",8,"Comemoração DIM","Portal","São Vicente"]
[145,null,{"$error":"#REF!"},null,"MARÇO","10,11,12","Retiro Espiritual MM Distrital","Todas","Imbituba"]
[146,null,{"$error":"#REF!"},null,"MARÇO","12 D","Chá Evangelístico","Distrital","Palhoça"]
[147,null,{"$error":"#REF!"},null,"MARÇO",18,"Encontro de Anciãos e Esposas",null,"AC"]
[148,null,{"$error":"#REF!"},null,"MARÇO",19,"Pregação",null,"Imbituba"]
[149,null,{"$error":"#REF!"},null,"MARÇO",25,"Dia da recepção e MEL","Distrital"]
[150,null,{"$error":"#REF!"},null,"MARÇO","26 D","Avaliação ",null,"AC"]
[151,null,{"$error":"#REF!"},"ABRIL","ABRIL",1,"Retiro Espiritual MM ","Armazém","São Martinho"]
[152,null,{"$error":"#REF!"},null,"ABRIL",2,"Chá e pregação",null,"Içara"]
[153,null,{"$error":"#REF!"},null,"ABRIL",4,"PGEsP  Capital",null,"Região Continente"]
[154,null,{"$error":"#REF!"},null,"ABRIL",8,"SS","Navegantes","Navegantes"]
[155,null,{"$error":"#REF!"},null,"ABRIL",22,"Retiro Espiritual MM de um dia","Distrital","Içara"]
[156,null,{"$error":"#REF!"},null,"ABRIL",25,"PGEsP  Norte",null,"Região Norte"]
[157,null,{"$error":"#REF!"},null,"ABRIL",29,"Retiro Espiritual MM ","Balneário Arroio","Araranguá"]
[161,"DERLI AGOSTINI",{"$f":"IF(B84=0,#REF!,B84)","v":"DERLI AGOSTINI"},"JANEIRO",{"$f":"IF(D84=0,#REF!,D84)","v":"JANEIRO"},14,"Lançar Ciclo C1S1 e treinar Lideres MIPES","Central","Florianópolis"]
[162,null,"DERLI AGOSTINI",null,"JANEIRO",15,"lançar Ciclo C1S1 e treinar Lideres MIPES","Definir com pastor","Revoredo"]
[163,null,"DERLI AGOSTINI",null,"JANEIRO",21,"lançar Ciclo C1S1 e treinar Lideres MIPES","Definir com pastor","Joaçaba"]
[164,null,"DERLI AGOSTINI",null,"JANEIRO",22,"lançar Ciclo C1S1 e treinar Lideres MIPES","Central","Garopaba"]
[165,null,"DERLI AGOSTINI",null,"JANEIRO",25,"lançar Ciclo C1S1 e treinar Lideres MIPES","Definir com pastor","Araranguá"]
[166,null,"DERLI AGOSTINI",null,"JANEIRO",28,"lançar Ciclo C1S1 e treinar Lideres MIPES - Manhã","Central","Campinas"]
[167,null,"DERLI AGOSTINI",null,"JANEIRO",28,"lançar Ciclo C1S1 e treinar Lideres MIPES  -Tarde","Definir com pastor","Jardim Atlântico"]
[168,null,"DERLI AGOSTINI",null,"JANEIRO","29 - 31","Concílio Pastoral AC","Definir","AC"]
[171,null,{"$f":"IF(B92=0,#REF!,B92)","v":{"$error":"#REF!"}},"FEVEREIRO",{"$f":"IF(D92=0,#REF!,D92)","v":"FEVEREIRO"},4,"Pregacão/ Treinamentos - Manhã","Rio Vermelho","Ingleses"]
[172,null,{"$error":"#REF!"},null,"FEVEREIRO",4,"Treinamento integrado e trimestral ","Ilha","Região Ilha"]
[173,null,{"$error":"#REF!"},null,"FEVEREIRO",5,"Treinamento integrado e trimestral ","Tubarão e Criciúma","Região Tubarão e Criciúma"]
[174,null,{"$error":"#REF!"},null,"FEVEREIRO",11,"lançar Ciclo C1S1 e treinar Lideres MIPES - Manhã","Biguaçu","Biguaçu"]
[175,null,{"$error":"#REF!"},null,"FEVEREIRO",11,"treinamento integrado e trimestral ","Continente","Região Continente"]
[176,null,{"$error":"#REF!"},null,"FEVEREIRO",12,"treinamento integrado e trimestral ","Itajaí e Brusque","Região Itajaí e Brusque"]
[177,null,{"$error":"#REF!"},null,"FEVEREIRO",18,"Lançar Ciclo C1S1 e treinar Lideres MIPES","Barreiros","Barreiros"]
[178,null,{"$error":"#REF!"},null,"FEVEREIRO","24 a 28","Acamp verão"]
[181,null,{"$f":"IF(B100=0,#REF!,B100)","v":{"$error":"#REF!"}},"MARÇO",{"$f":"IF(D100=0,#REF!,D100)","v":"MARÇO"},4,"lançar Ciclo C1S1 e treinar Lideres MIPES - Manhã","São Joaquim","São Joaquim"]
[182,null,{"$error":"#REF!"},null,"MARÇO",4,"Treinamento integrado e trimestral ","Lages","Região Serra"]
[183,null,{"$error":"#REF!"},null,"MARÇO",5,"Treinamento integrado e trimestral ","Joaçaba","Joaçaba"]
[184,null,{"$error":"#REF!"},null,"MARÇO",11,"Lançar Ciclo C1S1 e treinar Lideres MIPES","Brusque","Brusque"]
[185,null,{"$error":"#REF!"},null,"MARÇO",12,"Lançar Ciclo C1S1 e treinar Lideres MIPES","Sombrio","Sombrio"]
[186,null,{"$error":"#REF!"},null,"MARÇO",18,"Concílio Annual de Anciões","AC","AC"]
[187,null,{"$error":"#REF!"},null,"MARÇO",25,"Lançar Ciclo C1S1 e treinar Lideres MIPES","São Martinho","São Martinho"]
[188,null,{"$error":"#REF!"},null,"MARÇO",26,"Lançar Ciclo C1S1 e treinar Lideres MIPES","Nova Brasilia","Nova Brasília"]
[191,null,{"$f":"IF(B108=0,#REF!,B108)","v":{"$error":"#REF!"}},"ABRIL",{"$f":"IF(D108=0,#REF!,D108)","v":"ABRIL"},1,"lançar Ciclo C1S1 e treinar Lideres MIPES - Manhã","Próspera","Próspera"]
[192,null,{"$error":"#REF!"},null,"ABRIL",1,"Lançar Ciclo C1S1 e treinar Lideres MIPES - Tarde","Imbituba","Imbituba"]
[193,null,{"$error":"#REF!"},null,"ABRIL","2 a 8","Evangelismo Profético","Distrito","Revoredo"]
[194,null,{"$f":"IF(B111=0,C110,B111)","v":{"$error":"#REF!"}},null,{"$f":"IF(D111=0,E110,D111)","v":"ABRIL"},8,"Lançar Ciclo C1S1 e treinar Lideres MIPES","Estreito","Estreito"]
[195,null,{"$error":"#REF!"},null,"ABRIL",15,"lançar Ciclo C1S1 e treinar Lideres MIPES - Manhã","Distrito","Navegantes"]
[196,null,{"$error":"#REF!"},null,"ABRIL",15,"lançar Ciclo C1S1 e treinar Lideres MIPES  -Tarde","Distrito","Camboriú"]
[197,null,{"$error":"#REF!"},null,"ABRIL",22,"Lançar Ciclo C1S1 e treinar Lideres MIPES","Distrito","Laguna"]
[198,null,{"$error":"#REF!"},null,"ABRIL",29,"Lançar Ciclo C1S1 e treinar Lideres MIPES","Distrito","Universitário"]
[201,"EVANDRO PEREIRA DE VARGAS",{"$f":"IF(B116=0,#REF!,B116)","v":"EVANDRO PEREIRA DE VARGAS"},"JANEIRO",{"$f":"IF(D116=0,#REF!,D116)","v":"JANEIRO"}]
[202,null,"EVANDRO PEREIRA DE VARGAS",null,"JANEIRO",14,"Atendimento Equipes ","Equipes Estudantes"]
[203,null,"EVANDRO PEREIRA DE VARGAS",null,"JANEIRO",21,"Atendimento a Equipes e Pregações","Criciuma Central","Criciuma"]
[204,null,"EVANDRO PEREIRA DE VARGAS",null,"JANEIRO",28,"Atendimento Equipes ","Equipes Estudantes"]
[211,null,{"$f":"IF(B120=0,#REF!,B120)","v":{"$error":"#REF!"}},"FEVEREIRO",{"$f":"IF(D120=0,#REF!,D120)","v":"FEVEREIRO"}]
[212,null,{"$error":"#REF!"},null,"FEVEREIRO",4,"Pregação","Ingleses","Ingleses"]
[213,null,{"$error":"#REF!"},null,"FEVEREIRO",11,"Pregação ","São José","Campinas"]
[214,null,{"$error":"#REF!"},null,"FEVEREIRO",18,"Pregação e Recrutamento","Lages","Lages"]
[215,null,{"$error":"#REF!"},null,"FEVEREIRO",25,"Recrutamento de esudantes e Efetivos","Acampamentos","AC"]
[221,null,{"$f":"IF(B125=0,#REF!,B125)","v":{"$error":"#REF!"}},"MARÇO",{"$f":"IF(D125=0,#REF!,D125)","v":"MARÇO"}]
[222,null,{"$error":"#REF!"},null,"MARÇO",4,"Pregação e Recrutamento","Campo Belo do Sul","Santa Helena"]
[223,null,{"$error":"#REF!"},null,"MARÇO",11,"Recrutamento Estudantes","SAVE ONE","AC"]
[224,null,{"$error":"#REF!"},null,"MARÇO",18,"Recrutamento e Visitação Estudantes","Unasp","Unasp"]
[225,null,{"$error":"#REF!"},null,"MARÇO",25,"Pregação e Recrutamento","Próspera","Próspera"]
[231,null,{"$f":"IF(B130=0,#REF!,B130)","v":{"$error":"#REF!"}},"ABRIL",{"$f":"IF(D130=0,#REF!,D130)","v":"ABRIL"}]
[232,null,{"$error":"#REF!"},null,"ABRIL",1,"Pregação e Recrutamento","Imbituba","Imbituba"]
[233,null,{"$error":"#REF!"},null,"ABRIL",8,"Pregação e Recrutamento","Itapema","Itapema"]
[234,null,{"$error":"#REF!"},null,"ABRIL",15,"Pregação e Recrutamento","Revoredo","Revoredo"]
[235,null,{"$error":"#REF!"},null,"ABRIL",29,"Pregação e Recrutamento","Balneário Camburiú","Balneário Camboriú"]
[241,"FRANCISCO FRANCIEUDO FONSECA",{"$f":"IF(B135=0,#REF!,B135)","v":"FRANCISCO FRANCIEUDO FONSECA"},"JANEIRO",{"$f":"IF(D135=0,#REF!,D135)","v":"JANEIRO"},21,"Ciclo C1S1","Barreiros","Barreiros"]
[242,null,"FRANCISCO FRANCIEUDO FONSECA",null,"JANEIRO",28,"Ciclo C1S1","Garopaba","Garopaba"]
[251,null,{"$f":"IF(B137=0,#REF!,B137)","v":{"$error":"#REF!"}},"FEVEREIRO",{"$f":"IF(D137=0,#REF!,D137)","v":"FEVEREIRO"},4,"Ciclo C1S1","Campinas","Campinas"]
[252,null,{"$error":"#REF!"},null,"FEVEREIRO",11,"Ciclo C1S1","Jardim Eldorado","Jardim Eldorado"]
[253,null,{"$error":"#REF!"},null,"FEVEREIRO",18,"Ciclo C1S1 e Aliança de Fé","Tijucas","Tijucas"]
[254,null,{"$error":"#REF!"},null,"FEVEREIRO",25,"Acampamento de Verão"]
[261,null,{"$f":"IF(B141=0,#REF!,B141)","v":{"$error":"#REF!"}},"MARÇO",{"$f":"IF(D141=0,#REF!,D141)","v":"MARÇO"},4,"Ciclo C1S1 e Aliança de Fé","Theos","Lages"]
[262,null,{"$f":"IF(B142=0,C141,B142)","v":{"$error":"#REF!"}},null,{"$f":"IF(D142=0,E141,D142)","v":"MARÇO"},11,"Aliança de Fé","Hortolândia","UCB"]
[263,null,{"$error":"#REF!"},null,"MARÇO",18,"Encontro de Anciãos",null,"AC"]
[264,null,{"$error":"#REF!"},null,"MARÇO",25,"Ciclo C1S1 e Aliança de Fé","Revoredo ou","Revoredo"]
[265,null,{"$error":"#REF!"},null,"MARÇO"]
[271,null,{"$f":"IF(B146=0,#REF!,B146)","v":{"$error":"#REF!"}},"ABRIL",{"$f":"IF(D146=0,#REF!,D146)","v":"ABRIL"},1,"Ciclo C1S1 e Aliança de Fé","Nova Brasília ou","Nova Brasília"]
[272,null,{"$error":"#REF!"},null,"ABRIL",8,"Ciclo C1S1 e Aliança de Fé","Sombrio ou","Sombrio"]
[273,null,{"$error":"#REF!"},null,"ABRIL",15,"Ciclo C1S1 e Aliança de Fé","Brusque ou","Brusque"]
[274,null,{"$error":"#REF!"},null,"ABRIL",22,"Ciclo C1S1 e Aliança de Fé","Mato Alto","Araranguá"]
[275,null,{"$error":"#REF!"},null,"ABRIL",23,"Semana de saúde Dr. Jea","Catre","AC"]
[281,"JESSÉ ANASTÁCIO DE SOUZA",{"$f":"IF(B151=0,#REF!,B151)","v":"JESSÉ ANASTÁCIO DE SOUZA"},"JANEIRO",{"$f":"IF(D151=0,#REF!,D151)","v":"JANEIRO"},7,"FERIAS"]
[282,null,"JESSÉ ANASTÁCIO DE SOUZA",null,"JANEIRO",8,"CASAMENTO DE PALHOÇA  EM ITAPEMA "]
[283,null,"JESSÉ ANASTÁCIO DE SOUZA",null,"JANEIRO",14,"LANÇAMENTO EVANGELISMO","CAMPINAS","CAMPINAS"]
[284,null,"JESSÉ ANASTÁCIO DE SOUZA",null,"JANEIRO",21,"LANÇAMENTO EVANGELISMO","JD ATLANTICO","Jardim Atlântico"]
[285,null,"JESSÉ ANASTÁCIO DE SOUZA",null,"JANEIRO",28,"LANÇAMENTO EVANGELISMO","NOVA BRASILIA","Nova Brasília"]
[286,null,"JESSÉ ANASTÁCIO DE SOUZA",null,"JANEIRO",29,"CONCILIO PASTORAL","CATRE"]
[287,null,"JESSÉ ANASTÁCIO DE SOUZA",null,"JANEIRO",30,"CONCILIO PASTORAL","CATRE"]
[288,null,"JESSÉ ANASTÁCIO DE SOUZA",null,"JANEIRO",31,"CONCILIO PASTORAL","CATRE"]
[291,null,{"$f":"IF(B159=0,#REF!,B159)","v":{"$error":"#REF!"}},"FEVEREIRO",{"$f":"IF(D159=0,#REF!,D159)","v":"FEVEREIRO"},4,"LANÇAMENTO EVANGELISMO / INTEGRADO ILHA","UNIVERSITARIO","UNIVERSITÁRIO"]
[292,null,{"$error":"#REF!"},null,"FEVEREIRO",5,"TREINAMENTO INTEGRADO TUBARÃO",null,"Região Tubarão e Criciúma"]
[293,null,{"$error":"#REF!"},null,"FEVEREIRO",11,"LANÇAMENTO EVANGELISMO","BARREIROS","BARREIROS"]
[294,null,{"$error":"#REF!"},null,"FEVEREIRO",12,"TREINAMENTO INTEGRADO ITAJAÍ",null,"Itajaí"]
[295,null,{"$error":"#REF!"},null,"FEVEREIRO",18,"LANÇAMENTO EVANGELISMO","LAGUNA","LAGUNA"]
[296,null,{"$error":"#REF!"},null,"FEVEREIRO","25-28","ACAMP VERÃO"]
[301,null,{"$f":"IF(B165=0,C160,B165)","v":{"$error":"#REF!"}},"MARÇO",{"$f":"IF(D165=0,#REF!,D165)","v":"MARÇO"},4,"TREINAMENTO INTEGRADO LAGES","CENTRAL DE LAGES","LAGES"]
[302,null,{"$f":"IF(B166=0,C165,B166)","v":{"$error":"#REF!"}},null,{"$f":"IF(D166=0,E165,D166)","v":"MARÇO"},5,"TREINAMENTO INTEGRADO JOAÇABA",null,"JOAÇABA"]
[303,null,{"$error":"#REF!"},null,"MARÇO",6,"CONCILIO DE OBREIROS USB","CATRE","USB"]
[304,null,{"$error":"#REF!"},null,"MARÇO",7,"CONCILIO DE OBREIROS USB","CATRE","USB"]
[305,null,{"$f":"IF(B169=0,C164,B169)","v":{"$error":"#REF!"}},null,"MARÇO",8,"CONCILIO DE OBREIROS USB","CATRE","USB"]
[306,null,{"$f":"IF(B170=0,C169,B170)","v":{"$error":"#REF!"}},null,"MARÇO","11 a 18","EVANGELISMO JOAÇABA","JOAÇABA","JOAÇABA"]
[307,null,{"$error":"#REF!"},null,"MARÇO","25 a 01/04","EVANGELISMO CAMPINAS","CAMPINAS","CAMPINAS"]
[312,null,{"$f":"IF(B172=0,#REF!,B172)","v":{"$error":"#REF!"}},"ABRIL",{"$f":"IF(D172=0,#REF!,D172)","v":"ABRIL"}]
[313,null,{"$error":"#REF!"},null,"ABRIL","8 a 15","EVANGELISMO JD ATLANTICO","JD ATLANTICO","Jardim Atlântico"]
[314,null,{"$error":"#REF!"},null,"ABRIL",29,"CONGRESSO MISSÃO GLOBAL DA USB / CATRE",null,"USB"]
[322,"JOEL MORAIS",{"$f":"IF(B175=0,#REF!,B175)","v":"JOEL MORAIS"},"JANEIRO",{"$f":"IF(D175=0,#REF!,D175)","v":"JANEIRO"},14,"Seminário  NG","NOVA BRASILIA","Nova Brasília"]
[323,null,{"$f":"IF(B176=0,C175,B176)","v":"JOEL MORAIS"},null,{"$f":"IF(D176=0,E175,D176)","v":"JANEIRO"},21,"Implantação de Clubes","BOM RETIRO BRILHANTE","LIMOEIRO"]
[324,null,"JOEL MORAIS",null,"JANEIRO",28,"Implantação de Clubes","GUARUJÁ","LAGES"]
[332,null,{"$f":"IF(B178=0,#REF!,B178)","v":{"$error":"#REF!"}},"FEVEREIRO",{"$f":"IF(D178=0,#REF!,D178)","v":"FEVEREIRO"},4,"Seminário NG"]
[333,null,{"$error":"#REF!"},null,"FEVEREIRO",11,"Reestruturação Clube Belvedere","CAMPINAS","CAMPINAS"]
[334,null,{"$error":"#REF!"},null,"FEVEREIRO",15,"visita Regional Aventureios","MINERAÇÃO","IÇARA"]
[335,null,{"$error":"#REF!"},null,"FEVEREIRO",18,"Encontro com Distritais MDA","CRICIUMA","CRICIUMA"]
[336,null,{"$error":"#REF!"},null,"FEVEREIRO",25,"Acamp de Verão","PROSPERA","PRÓSPERA"]
[342,null,{"$f":"IF(B183=0,#REF!,B183)","v":{"$error":"#REF!"}},"MARÇO",{"$f":"IF(D183=0,#REF!,D183)","v":"MARÇO"},4,"Seminário NG","PENHA","LAGES"]
[343,null,{"$error":"#REF!"},null,"MARÇO",5,"Investidura Clube Canaã","JARDIM ELDORADO","JARDIM ELDORADO"]
[344,null,{"$error":"#REF!"},null,"MARÇO",8,"Pregação","Santo Amaro","Caminho Novo"]
[345,null,{"$error":"#REF!"},null,"MARÇO",11,"Encontro com distritais Aventureiros","INGLESES","Ingleses"]
[346,null,{"$error":"#REF!"},null,"MARÇO",25,"Acamp Diretores de Clubes da Serra","SÃO JOAQUIM","SÃO JOAQUIM"]
[352,null,{"$f":"IF(B188=0,#REF!,B188)","v":{"$error":"#REF!"}},"ABRIL",{"$f":"IF(D188=0,#REF!,D188)","v":"ABRIL"},1,"Investidura","JOAÇABA","JOAÇABA"]
[353,null,{"$error":"#REF!"},null,"ABRIL",2,"Treinamento regional","Santa Helena ","LAGES"]
[354,null,{"$error":"#REF!"},null,"ABRIL",8,"Seminário NG+G452+G420","TUBARÃO","TUBARÃO"]
[355,null,{"$error":"#REF!"},null,"ABRIL",15,"Seminário NG- encontro diretores de clubes","Ararangua","Araranguá"]
[356,null,{"$error":"#REF!"},null,"ABRIL",23,"Seminário NG- encontro diretores de clubes","São Vicente","São Vicente"]
[362,"LUIZ HOMERO MATTOS BUBNA",{"$f":"IF(B193=0,#REF!,B193)","v":"LUIZ HOMERO MATTOS BUBNA"},"JANEIRO",{"$f":"IF(D193=0,#REF!,D193)","v":"JANEIRO"},7,"MESTRADO CHILE"]
[363,null,"LUIZ HOMERO MATTOS BUBNA",null,"JANEIRO",14,"MESTRADO CHILE"]
[364,null,"LUIZ HOMERO MATTOS BUBNA",null,"JANEIRO",21,"PROMOÇÃO EDUCAÇÃO ADVENTISTA","SÃO JOÃO BATISTA","TIJUCAS"]
[365,null,"LUIZ HOMERO MATTOS BUBNA",null,"JANEIRO",28,"PROMOÇÃO EDUCAÇÃO ADVENTISTA","PRADO","BIGUAÇU"]
[372,null,{"$f":"IF(B197=0,#REF!,B197)","v":{"$error":"#REF!"}},"FEVEREIRO",{"$f":"IF(D197=0,#REF!,D197)","v":"FEVEREIRO"},4,"PROMOÇÃO EDUCAÇÃO ADVENTISTA","ROÇADO","Jardim Atlântico"]
[373,null,{"$error":"#REF!"},null,"FEVEREIRO",11,"PROMOÇÃO EDUCAÇÃO ADVENTISTA","IMBITUBA","IMBITUBA"]
[374,null,{"$error":"#REF!"},null,"FEVEREIRO",18,"PROMOÇÃO EDUCAÇÃO ADVENTISTA","PRIMAVERA","UNIVERSITÁRIO"]
[375,null,{"$error":"#REF!"},null,"FEVEREIRO",25,"RETIRO ESPIRITUAL DE VERÃO",null,"AC"]
[382,null,{"$f":"IF(B201=0,#REF!,B201)","v":{"$error":"#REF!"}},"MARÇO",{"$f":"IF(D201=0,#REF!,D201)","v":"MARÇO"},4,"PROMOÇÃO EDUCAÇÃO ADVENTISTA","CATUIRA ","BOM RETIRO"]
[383,null,{"$error":"#REF!"},null,"MARÇO",11,"PROMOÇÃO EDUCAÇÃO ADVENTISTA","NAVEGANTES","NAVEGANTES"]
[384,null,{"$error":"#REF!"},null,"MARÇO",18,"ENCONTRO DE ANCIÃOS",null,"AC"]
[385,null,{"$error":"#REF!"},null,"MARÇO",25,"PROMOÇÃO EDUCAÇÃO ADVENTISTA","SANTO AMARO DO IMPERATRIZ","CAMINHO NOVO"]
[392,null,{"$f":"IF(B205=0,#REF!,B205)","v":{"$error":"#REF!"}},"ABRIL",{"$f":"IF(D205=0,#REF!,D205)","v":"ABRIL"},1,"PROMOÇÃO EDUCAÇÃO ADVENTISTA","SÃO MARTINHO","SÃO MARTINHO"]
[393,null,{"$f":"IF(B206=0,C205,B206)","v":{"$error":"#REF!"}},null,{"$f":"IF(D206=0,E205,D206)","v":"ABRIL"},8,"PROMOÇÃO EDUCAÇÃO ADVENTISTA","AZAMBUJA","BRUSQUE"]
[394,null,{"$error":"#REF!"},null,"ABRIL",15,"PROMOÇÃO EDUCAÇÃO ADVENTISTA","VILA FORMOSA","JARDIM ELDORADO"]
[395,null,{"$error":"#REF!"},null,"ABRIL",22,"PROMOÇÃO EDUCAÇÃO ADVENTISTA","PRAIA BRAVA","BALNEÁRIO CAMBORIÚ"]
[396,null,{"$error":"#REF!"},null,"ABRIL",29,"PROMOÇÃO EDUCAÇÃO ADVENTISTA","FORQUILHINHAS ","IÇARA"]
[402,"JOÃO NICOLAU GONÇALVES",{"$f":"IF(B210=0,#REF!,B210)","v":"JOÃO NICOLAU GONÇALVES"},"JANEIRO",{"$f":"IF(D210=0,#REF!,D210)","v":"JANEIRO"}]
[403,null,{"$f":"IF(B211=0,C210,B211)","v":"JOÃO NICOLAU GONÇALVES"},null,{"$f":"IF(D211=0,E210,D211)","v":"JANEIRO"},14,"Capacitação Evangelistas Colheita","Barreiros","Barreiros"]
[404,null,"JOÃO NICOLAU GONÇALVES",null,"JANEIRO",21,"Capacitação Evangelistas Colheita","Nova Brasília","Nova Brasília"]
[405,null,"JOÃO NICOLAU GONÇALVES",null,"JANEIRO",28,"Capacitação Evangelistas Colheita","Fpolis","FLORIANÓPOLIS"]
[412,null,{"$f":"IF(B214=0,#REF!,B214)","v":{"$error":"#REF!"}},"FEVEREIRO",{"$f":"IF(D214=0,#REF!,D214)","v":"FEVEREIRO"}]
[413,null,{"$error":"#REF!"},null,"FEVEREIRO",4,"Treinamento Integrado / Pregação","Santo Amaro da Imperatriz","Caminho Novo"]
[414,null,{"$error":"#REF!"},null,"FEVEREIRO",11,"Treinamento Integrado / Pregação","Palhoça","Palhoça"]
[415,null,{"$error":"#REF!"},null,"FEVEREIRO",18,"Capacitação Evangelistas Colheita","Brusque","Brusque"]
[416,null,{"$error":"#REF!"},null,"FEVEREIRO",25,"Acampamento Verão","AC","AC"]
[422,null,{"$f":"IF(B219=0,#REF!,B219)","v":{"$error":"#REF!"}},"MARÇO",{"$f":"IF(D219=0,#REF!,D219)","v":"MARÇO"}]
[423,null,{"$error":"#REF!"},null,"MARÇO",4,"Treinamento Integrado / Pregação","Santa Helena","Santa Helena"]
[424,null,{"$error":"#REF!"},null,"MARÇO",11,"Colheita Barreiros","Barreiros","Barreiros"]
[425,null,{"$error":"#REF!"},null,"MARÇO",18,"Encontro Anciãos / Colheita Barreiros","AC","AC"]
[426,null,{"$error":"#REF!"},null,"MARÇO",25,"Capacitação Evangelistas","Sombrio","Sombrio"]
[432,null,{"$f":"IF(B224=0,#REF!,B224)","v":{"$error":"#REF!"}},"ABRIL",{"$f":"IF(D224=0,#REF!,D224)","v":"ABRIL"}]
[433,null,{"$error":"#REF!"},null,"ABRIL",1,"Colheita Central Fpolis","Fpolis","FLORIANÓPOLIS"]
[434,null,{"$error":"#REF!"},null,"ABRIL",8,"Capacitação Evangelistas Colheita","Navegantes","Navegantes"]
[435,null,{"$error":"#REF!"},null,"ABRIL",15,"Capacitação Evangelistas Colheita","Imbituba","Imbituba"]
[436,null,{"$error":"#REF!"},null,"ABRIL",22,"Capacitação Evangelistas Colheita","Camboriú","Camboriú"]
[437,null,{"$error":"#REF!"},null,"ABRIL",29,"Congresso Missão Global","AC","AC"]
[442,"OTACÍLIO SILVESTRE PORFÍRIO",{"$f":"IF(B230=0,#REF!,B230)","v":"OTACÍLIO SILVESTRE PORFÍRIO"},"JANEIRO",{"$f":"IF(D230=0,#REF!,D230)","v":"JANEIRO"},7,"Culto Sábado","Rio Vermelho","Ingleses"]
[443,null,"OTACÍLIO SILVESTRE PORFÍRIO",null,"JANEIRO",14,"Culto Sábado (manhã)","Itapema","Itapema"]
[444,null,"OTACÍLIO SILVESTRE PORFÍRIO",null,"JANEIRO",14,"Planeta Calebe","AC"]
[445,null,"OTACÍLIO SILVESTRE PORFÍRIO",null,"JANEIRO","15-28","Visitação Equipes Missão Calebe","AC"]
[446,null,"OTACÍLIO SILVESTRE PORFÍRIO",null,"JANEIRO",21,"Culto Sábado (manhã)","Santa Helena","Santa Helena"]
[447,null,"OTACÍLIO SILVESTRE PORFÍRIO",null,"JANEIRO",22,"Ciclo C1S1","Joaçaba","Joaçaba"]
[448,null,"OTACÍLIO SILVESTRE PORFÍRIO",null,"JANEIRO",28,"Culto Sábado","Criciúma","Criciúma"]
[449,null,"OTACÍLIO SILVESTRE PORFÍRIO",null,"JANEIRO","29-31","Concílio Pastoral","Catre"]
[452,null,{"$f":"IF(B238=0,#REF!,B238)","v":{"$error":"#REF!"}},"FEVEREIRO",{"$f":"IF(D238=0,#REF!,D238)","v":"FEVEREIRO"},3,"Ciclo C1S1","Campinas","Campinas"]
[453,null,{"$error":"#REF!"},null,"FEVEREIRO",4,"Culto Sábado (manhã)","Primavera","Universitário"]
[454,null,{"$error":"#REF!"},null,"FEVEREIRO",5,"Ciclo C1S1","Garopaba","Garopaba"]
[455,null,{"$f":"IF(B241=0,C239,B241)","v":{"$error":"#REF!"}},null,{"$f":"IF(D241=0,E239,D241)","v":"FEVEREIRO"},10,"Ciclo C1S1","Florianópolis","Florianópolis"]
[456,null,{"$error":"#REF!"},null,"FEVEREIRO",11,"Culto Sábado (manhã)","Barreiros","Barreiros"]
[457,null,{"$error":"#REF!"},null,"FEVEREIRO",12,"Ciclo C1S1","Revoredo","Revoredo"]
[458,null,{"$error":"#REF!"},null,"FEVEREIRO",17,"Ciclo C1S1","Jardim Atlântico","Jardim Atlântico"]
[459,null,{"$error":"#REF!"},null,"FEVEREIRO",18,"Culto Sábado (manhã)","Jardim Eldorado","Jardim Eldorado"]
[460,null,{"$error":"#REF!"},null,"FEVEREIRO",19,"Casamento"]
[461,null,{"$error":"#REF!"},null,"FEVEREIRO","24-28","Acampamento de Verão","AC"]
[463,null,{"$f":"IF(B248=0,#REF!,B248)","v":{"$error":"#REF!"}},"MARÇO",{"$f":"IF(D248=0,#REF!,D248)","v":"MARÇO"},4,"FOCO J.A.","AC"]
[464,null,{"$error":"#REF!"},null,"MARÇO",4,"Curitibanos","Curitibanos","Lages"]
[465,null,{"$error":"#REF!"},null,"MARÇO",11,"SaveOne","CATRE"]
[466,null,{"$error":"#REF!"},null,"MARÇO",17,"Ciclo C1S1","Araranguá","Araranguá"]
[467,null,{"$error":"#REF!"},null,"MARÇO",18,"Encontro de Anciãos","AC"]
[468,null,{"$f":"IF(B253=0,C252,B253)","v":{"$error":"#REF!"}},null,{"$f":"IF(D253=0,E252,D253)","v":"MARÇO"},19,"CTBD/CTAD","AC"]
[469,null,{"$error":"#REF!"},null,"MARÇO",25,"Culto Sábado (manhã)","Nova Brasília","Nova Brasília"]
[470,null,{"$error":"#REF!"},null,"MARÇO",25,"Coral Jovem Eldorado (noite)","Jardim Eldorado","Jardim Eldorado"]
[471,null,{"$error":"#REF!"},null,"MARÇO",26,"PAMP Avaliação","AC"]
[472,null,{"$error":"#REF!"},null,"MARÇO",31,"Ciclo C1S1","Brusque","Brusque"]
[473,null,{"$error":"#REF!"},"ABRIL","ABRIL",1,"Culto Sábado (manhã)","Itajaí","Itajaí"]
[474,null,{"$error":"#REF!"},null,"ABRIL",2,"Ciclo C1S1","Sombrio","Sombrio"]
[475,null,{"$error":"#REF!"},null,"ABRIL",7,"Ciclo C1S1","Nova Brasília","Nova Brasília"]
[476,null,{"$error":"#REF!"},null,"ABRIL",8,"Vida por Vidas","AC"]
[477,null,{"$error":"#REF!"},null,"ABRIL","09 a 15","Semana Santa","AC"]
[478,null,{"$error":"#REF!"},null,"ABRIL",15,"Culto Sábado (manhã)","Camboriú","Camboriú"]
[479,null,{"$error":"#REF!"},null,"ABRIL",28,"Ciclo C1S1","São Martinho","São Martinho"]
[480,null,{"$error":"#REF!"},null,"ABRIL",29,"Congresso de Adolescentes","AC"]
[481,null,{"$error":"#REF!"},null,"ABRIL",30,"Casamento"]
[482,"JURANDIR HAUSER",{"$f":"IF(B267=0,#REF!,B267)","v":"JURANDIR HAUSER"},"JANEIRO",{"$f":"IF(D267=0,#REF!,D267)","v":"JANEIRO"}]
[483,null,"JURANDIR HAUSER",null,"JANEIRO"]
[484,null,"JURANDIR HAUSER",null,"JANEIRO"]
[485,null,"JURANDIR HAUSER",null,"JANEIRO"]
[486,null,"JURANDIR HAUSER",null,"JANEIRO"]
[487,null,"JURANDIR HAUSER",null,"JANEIRO"]
[488,null,"JURANDIR HAUSER",null,"JANEIRO"]
[489,null,"JURANDIR HAUSER",null,"JANEIRO"]
[490,null,"JURANDIR HAUSER",null,"JANEIRO"]
[491,null,"JURANDIR HAUSER",null,"JANEIRO"]
[492,null,"JURANDIR HAUSER","FEVEREIRO","FEVEREIRO"]
[493,null,"JURANDIR HAUSER",null,"FEVEREIRO"]
[494,null,"JURANDIR HAUSER",null,"FEVEREIRO"]
[495,null,"JURANDIR HAUSER",null,"FEVEREIRO"]
[496,null,"JURANDIR HAUSER",null,"FEVEREIRO"]
[497,null,"JURANDIR HAUSER",null,"FEVEREIRO"]
[498,null,"JURANDIR HAUSER",null,"FEVEREIRO"]
[499,null,"JURANDIR HAUSER",null,"FEVEREIRO"]
[500,null,"JURANDIR HAUSER",null,"FEVEREIRO"]
[501,null,"JURANDIR HAUSER",null,"FEVEREIRO"]
[502,null,"JURANDIR HAUSER","MARÇO","MARÇO"]
[503,null,"JURANDIR HAUSER",null,"MARÇO"]
[504,null,"JURANDIR HAUSER",null,"MARÇO"]
[505,null,"JURANDIR HAUSER",null,"MARÇO"]
[506,null,"JURANDIR HAUSER",null,"MARÇO"]
[507,null,"JURANDIR HAUSER",null,"MARÇO"]
[508,null,"JURANDIR HAUSER",null,"MARÇO"]
[509,null,"JURANDIR HAUSER",null,"MARÇO"]
[510,null,"JURANDIR HAUSER",null,"MARÇO"]
[511,null,"JURANDIR HAUSER",null,"MARÇO"]
[512,null,"JURANDIR HAUSER","ABRIL","ABRIL"]
[513,null,"JURANDIR HAUSER",null,"ABRIL"]
[514,null,"JURANDIR HAUSER",null,"ABRIL"]
[515,null,"JURANDIR HAUSER",null,"ABRIL"]
[516,null,"JURANDIR HAUSER",null,"ABRIL"]
[517,null,"JURANDIR HAUSER",null,"ABRIL"]
[518,null,"JURANDIR HAUSER",null,"ABRIL"]
[519,null,"JURANDIR HAUSER",null,"ABRIL"]
[520,null,"JURANDIR HAUSER",null,"ABRIL"]
[521,null,"JURANDIR HAUSER",null,"ABRIL"]
[522,"SIMEI MELLO GUEDES PORFÍRIO","SIMEI MELLO GUEDES PORFÍRIO","JANEIRO","JANEIRO",7,"Pregação ","Azambuja","Brusque"]
[523,null,"SIMEI MELLO GUEDES PORFÍRIO",null,"JANEIRO",14,"Pregação ","Sambaqui","Universitário"]
[524,null,"SIMEI MELLO GUEDES PORFÍRIO",null,"JANEIRO",21,"Pregação ","Lages","Lages"]
[525,null,"SIMEI MELLO GUEDES PORFÍRIO",null,"JANEIRO",28,"Pregação ","Içara","Içara"]
[532,null,{"$f":"IF(B311=0,#REF!,B311)","v":{"$error":"#REF!"}},"FEVEREIRO",{"$f":"IF(D311=0,#REF!,D311)","v":"FEVEREIRO"},4,"Pregação ","Campeche","Rio Tavares"]
[533,null,{"$f":"IF(B312=0,C311,B312)","v":{"$error":"#REF!"}},null,{"$f":"IF(D312=0,E311,D312)","v":"FEVEREIRO"},11,"Pregação ","Santo Amaro do Imperatriz","Caminho Novo"]
[534,null,{"$error":"#REF!"},null,"FEVEREIRO",18,"Pregação ","Tijucas","Tijucas"]
[535,null,{"$error":"#REF!"},null,"FEVEREIRO",25,"Acampamento de Carnaval","AC","AC"]
[542,null,{"$f":"IF(B315=0,#REF!,B315)","v":{"$error":"#REF!"}},"MARÇO",{"$f":"IF(D315=0,#REF!,D315)","v":"MARÇO"},4,"Pregação ","Pontre Alta do Sul","Lages"]
[543,null,{"$error":"#REF!"},null,"MARÇO",11,"Save One +","Catre","AC"]
[544,null,{"$error":"#REF!"},null,"MARÇO",18,"Encontro de Anciãos","AC","AC"]
[545,null,{"$error":"#REF!"},null,"MARÇO",19,"Treinamento Distritais MCA","CAF-E","Região Continente"]
[546,null,{"$error":"#REF!"},null,"MARÇO",25,"Pregação / Treinamento Distrital","Laguna","Laguna"]
[552,null,{"$f":"IF(B320=0,#REF!,B320)","v":{"$error":"#REF!"}},"ABRIL",{"$f":"IF(D320=0,#REF!,D320)","v":"ABRIL"},1,"Pregação / Treinamento Distrital","Revoredo","Revoredo"]
[553,null,{"$error":"#REF!"},null,"ABRIL",8,"Pregação","Barra da Lagoa","Universitário"]
[554,null,{"$error":"#REF!"},null,"ABRIL",15,"Pregação / Treinamento Distrital","Nova Brasilia","Nova Brasília"]
[556,null,{"$f":"IF(B323=0,#REF!,B323)","v":{"$error":"#REF!"}},null,{"$f":"IF(D323=0,#REF!,D323)","v":{"$error":"#REF!"}},29,"Congresso G148 Teen","Centro Multi Uso","AC"]